[Event "Early-Titled-Tuesday-Blitz-January-30-2024"]
[Site "Chess.com"]
[Date "2024.01.30"]
[Round "2"]
[White "cristianserban1"]
[Black "artin10862"]
[Result "0-1"]
[WhiteElo "2571"]
[BlackElo "2858"]
[TimeControl "180+1"]
[EndTime "8:19:34 PST"]
[Termination "artin10862 won by resignation"]

1. Nf3 {[%clk 0:03:00.9]} 1... b6 {[%clk 0:02:56.6]} 2. b3 {[%clk 0:02:59.4]}
2... Nf6 {[%clk 0:02:55.9]} 3. Bb2 {[%clk 0:02:59.9]} 3... g6 {[%clk 0:02:56.2]}
4. g3 {[%clk 0:03:00.3]} 4... Bb7 {[%clk 0:02:55.5]} 5. Bg2 {[%clk 0:03:00.5]}
5... Bg7 {[%clk 0:02:56.1]} 6. O-O {[%clk 0:03:01.2]} 6... O-O {[%clk
0:02:56.7]} 7. c4 {[%clk 0:03:01.7]} 7... d6 {[%clk 0:02:51.8]} 8. d4 {[%clk
0:02:58.2]} 8... Nbd7 {[%clk 0:02:51.7]} 9. Nc3 {[%clk 0:02:57.5]} 9... Re8
{[%clk 0:02:51.3]} 10. Qc2 {[%clk 0:02:57.1]} 10... e5 {[%clk 0:02:47]} 11. dxe5
{[%clk 0:02:58]} 11... dxe5 {[%clk 0:02:46.7]} 12. Rad1 {[%clk 0:02:38.8]} 12...
Qe7 {[%clk 0:02:34.2]} 13. Nb5 {[%clk 0:02:22.4]} 13... Rec8 {[%clk 0:02:11.9]}
14. Ba3 {[%clk 0:02:08.4]} 14... Qe8 {[%clk 0:02:11.2]} 15. Nc3 {[%clk
0:01:58.7]} 15... h6 {[%clk 0:02:06.3]} 16. Nd2 {[%clk 0:01:54.6]} 16... Bxg2
{[%clk 0:02:02.1]} 17. Kxg2 {[%clk 0:01:55.5]} 17... Bf8 {[%clk 0:02:00.3]} 18.
Bxf8 {[%clk 0:01:46.8]} 18... Qxf8 {[%clk 0:01:57.6]} 19. Nde4 {[%clk
0:01:47.5]} 19... Kg7 {[%clk 0:01:48.1]} 20. Nxf6 {[%clk 0:01:34.8]} 20... Nxf6
{[%clk 0:01:47.4]} 21. Ne4 {[%clk 0:01:34.8]} 21... Ne8 {[%clk 0:01:47.2]} 22.
c5 {[%clk 0:01:30.2]} 22... Rd8 {[%clk 0:01:45.2]} 23. Qc3 {[%clk 0:01:22.6]}
23... Qe7 {[%clk 0:01:42.3]} 24. f4 {[%clk 0:01:18.7]} 24... f6 {[%clk
0:01:41.9]} 25. fxe5 {[%clk 0:01:18.2]} 25... Qxe5 {[%clk 0:01:41.5]} 26. Qxe5
{[%clk 0:01:18.4]} 26... fxe5 {[%clk 0:01:42.4]} 27. h4 {[%clk 0:01:11.7]} 27...
b5 {[%clk 0:00:58.9]} 28. g4 {[%clk 0:00:37.8]} 28... c6 {[%clk 0:00:50.6]} 29.
g5 {[%clk 0:00:37]} 29... hxg5 {[%clk 0:00:48]} 30. hxg5 {[%clk 0:00:37.9]}
30... Nc7 {[%clk 0:00:44.7]} 31. Rd6 {[%clk 0:00:24.5]} 31... Nd5 {[%clk
0:00:42]} 32. Kg1 {[%clk 0:00:06.8]} 32... Rxd6 {[%clk 0:00:39.7]} 33. cxd6
{[%clk 0:00:07.1]} 33... Nb6 {[%clk 0:00:20.8]} 34. Rc1 {[%clk 0:00:06.3]} 34...
Rc8 {[%clk 0:00:20.9]} 35. Nf6 {[%clk 0:00:06.8]} 35... Kf7 {[%clk 0:00:12.1]}
36. d7 {[%clk 0:00:06.6]} 36... Rd8 {[%clk 0:00:12.8]} 37. Rxc6 {[%clk
0:00:07.1]} 37... Nxd7 {[%clk 0:00:13.5]} 38. Rd6 {[%clk 0:00:05.8]} 38... Ke7
{[%clk 0:00:12.3]} 39. Rxd7+ {[%clk 0:00:02.5]} 39... Rxd7 {[%clk 0:00:13.2]}
40. Nxd7 {[%clk 0:00:03.4]} 40... Kxd7 {[%clk 0:00:14.1]} 41. Kf2 {[%clk
0:00:03.9]} 41... Kd6 {[%clk 0:00:10]} 42. e4 {[%clk 0:00:03.6]} 42... Kc5
{[%clk 0:00:10.2]} 43. Ke3 {[%clk 0:00:03.7]} 43... Kb4 {[%clk 0:00:10.5]} 44.
Kd3 {[%clk 0:00:01.7]} 44... Ka3 {[%clk 0:00:10.7]} 45. Kc2 {[%clk 0:00:02.3]}
45... Kxa2 {[%clk 0:00:09.8]} 46. b4 {[%clk 0:00:03.1]} 46... Ka3 {[%clk
0:00:09.8]} 47. Kc3 {[%clk 0:00:03.5]} 47... a6 {[%clk 0:00:10.3]} 0-1

[Event "Early-Titled-Tuesday-Blitz-January-30-2024"]
[Site "Chess.com"]
[Date "2024.01.30"]
[Round "2"]
[White "EvilMorty23"]
[Black "Sajith_Peiris"]
[Result "1-0"]
[WhiteElo "2510"]
[BlackElo "2217"]
[TimeControl "180+1"]
[EndTime "8:19:38 PST"]
[Termination "EvilMorty23 won by resignation"]

1. e4 {[%clk 0:03:00.9]} 1... c6 {[%clk 0:02:58.7]} 2. d4 {[%clk 0:03:00.3]}
2... d5 {[%clk 0:02:58.4]} 3. e5 {[%clk 0:03:01.2]} 3... a6 {[%clk 0:02:55.2]}
4. c4 {[%clk 0:02:55]} 4... Bf5 {[%clk 0:02:48.5]} 5. Nc3 {[%clk 0:02:53.9]}
5... e6 {[%clk 0:02:47.6]} 6. h4 {[%clk 0:02:51.1]} 6... h5 {[%clk 0:02:46]} 7.
Nge2 {[%clk 0:02:48.1]} 7... Nd7 {[%clk 0:02:44.1]} 8. Ng3 {[%clk 0:02:47.7]}
8... Bg6 {[%clk 0:02:42.8]} 9. Be2 {[%clk 0:02:47.8]} 9... Be7 {[%clk
0:02:33.1]} 10. Nxh5 {[%clk 0:02:41.6]} 10... Bxh5 {[%clk 0:02:21.1]} 11. Bxh5
{[%clk 0:02:42.5]} 11... g6 {[%clk 0:02:20.5]} 12. Bf3 {[%clk 0:02:42.2]} 12...
Nh6 {[%clk 0:02:14.4]} 13. cxd5 {[%clk 0:02:40.8]} 13... cxd5 {[%clk 0:02:13.3]}
14. h5 {[%clk 0:02:39.5]} 14... Nf5 {[%clk 0:02:08.2]} 15. g3 {[%clk 0:02:36.9]}
15... Qb6 {[%clk 0:02:02.4]} 16. Ne2 {[%clk 0:02:34.4]} 16... Bb4+ {[%clk
0:01:47.4]} 17. Kf1 {[%clk 0:02:33.3]} 17... O-O-O {[%clk 0:01:37.9]} 18. hxg6
{[%clk 0:02:30.2]} 18... fxg6 {[%clk 0:01:36.2]} 19. Bg5 {[%clk 0:02:22.5]}
19... Be7 {[%clk 0:01:30.5]} 20. Bxe7 {[%clk 0:02:17.4]} 20... Nxe7 {[%clk
0:01:30.4]} 21. Rxh8 {[%clk 0:02:09]} 21... Rxh8 {[%clk 0:01:29.3]} 22. Qc1+
{[%clk 0:01:59.4]} 22... Kb8 {[%clk 0:01:16.6]} 23. a3 {[%clk 0:01:59]} 23...
Nc6 {[%clk 0:01:10.6]} 24. Qd2 {[%clk 0:01:57.7]} 24... Qd8 {[%clk 0:01:07.9]}
25. b4 {[%clk 0:01:56.2]} 25... Qf8 {[%clk 0:01:06]} 26. Bg2 {[%clk 0:01:49.3]}
26... Qe7 {[%clk 0:00:57]} 27. Nf4 {[%clk 0:01:46]} 27... Nf8 {[%clk 0:00:51.2]}
28. Qd3 {[%clk 0:01:40.1]} 28... g5 {[%clk 0:00:47.3]} 29. Ne2 {[%clk
0:01:37.8]} 29... Rh7 {[%clk 0:00:45.4]} 30. b5 {[%clk 0:01:33.3]} 30... axb5
{[%clk 0:00:44.6]} 31. Qxb5 {[%clk 0:01:34.2]} 31... Rf7 {[%clk 0:00:25.1]} 32.
Rb1 {[%clk 0:01:27.2]} 32... Nd8 {[%clk 0:00:23.1]} 33. a4 {[%clk 0:01:24.8]}
33... Ng6 {[%clk 0:00:19.6]} 34. Rb2 {[%clk 0:01:20.4]} 34... Qf8 {[%clk
0:00:18.9]} 35. Nc3 {[%clk 0:01:20.5]} 35... g4 {[%clk 0:00:14.8]} 36. a5 {[%clk
0:01:20.3]} 36... Qh8 {[%clk 0:00:13.7]} 37. a6 {[%clk 0:01:20.4]} 37... Qh6
{[%clk 0:00:12.7]} 38. Qe8 {[%clk 0:01:19.5]} 38... Qc1+ {[%clk 0:00:11.5]} 39.
Ke2 {[%clk 0:01:19.4]} 39... Qxb2+ {[%clk 0:00:10.8]} 40. Kd3 {[%clk 0:01:18.5]}
40... Rc7 {[%clk 0:00:08.3]} 41. Qxd8+ {[%clk 0:01:17.2]} 41... Rc8 {[%clk
0:00:08.5]} 42. a7+ {[%clk 0:01:17.4]} 42... Kxa7 {[%clk 0:00:07.4]} 43. Qxc8
{[%clk 0:01:18]} 43... Ne7 {[%clk 0:00:07.1]} 44. Qc5+ {[%clk 0:01:17.5]} 44...
Ka8 {[%clk 0:00:04.4]} 45. Qxe7 {[%clk 0:01:17.7]} 45... Qxf2 {[%clk 0:00:03.9]}
46. Qe8+ {[%clk 0:01:09.5]} 46... Ka7 {[%clk 0:00:04.4]} 47. Qa4+ {[%clk
0:01:07.9]} 47... Kb8 {[%clk 0:00:04.9]} 48. Qc2 {[%clk 0:01:08.3]} 48... Qxg3+
{[%clk 0:00:04.5]} 49. Kd2 {[%clk 0:01:05.4]} 49... Qxg2+ {[%clk 0:00:05.1]} 50.
Ne2 {[%clk 0:01:05.6]} 50... Qf3 {[%clk 0:00:04.4]} 51. Qg6 {[%clk 0:01:04.2]}
51... g3 {[%clk 0:00:04.7]} 52. Qxg3 {[%clk 0:01:01.9]} 52... Qe4 {[%clk
0:00:05.1]} 53. Qg8+ {[%clk 0:01:01]} 53... Ka7 {[%clk 0:00:05]} 54. Qxe6 {[%clk
0:01:01.7]} 54... Qf3 {[%clk 0:00:02.3]} 55. Qd6 {[%clk 0:00:58.7]} 55... Qb3
{[%clk 0:00:01.2]} 56. Qc5+ {[%clk 0:00:57.3]} 56... Kb8 {[%clk 0:00:01.1]} 57.
e6 {[%clk 0:00:58]} 57... Qb2+ {[%clk 0:00:01.1]} 58. Ke3 {[%clk 0:00:57.6]}
58... Qb1 {[%clk 0:00:02]} 59. Qxd5 {[%clk 0:00:52.6]} 59... Qe4+ {[%clk
0:00:02.8]} 60. Qxe4 {[%clk 0:00:52.8]} 1-0

[Event "Early-Titled-Tuesday-Blitz-January-30-2024"]
[Site "Chess.com"]
[Date "2024.01.30"]
[Round "2"]
[White "WhiteKnight2612"]
[Black "N4700000"]
[Result "1-0"]
[WhiteElo "2825"]
[BlackElo "2421"]
[TimeControl "180+1"]
[EndTime "8:19:43 PST"]
[Termination "WhiteKnight2612 won on time"]

1. Nf3 {[%clk 0:03:00.9]} 1... g6 {[%clk 0:02:59.2]} 2. d4 {[%clk 0:02:55.4]}
2... Bg7 {[%clk 0:02:59.1]} 3. g3 {[%clk 0:02:53.2]} 3... d5 {[%clk 0:02:56.5]}
4. Bg2 {[%clk 0:02:51.7]} 4... c6 {[%clk 0:02:54.5]} 5. O-O {[%clk 0:02:49.9]}
5... Nd7 {[%clk 0:02:52.8]} 6. c4 {[%clk 0:02:49.4]} 6... dxc4 {[%clk
0:02:51.2]} 7. a4 {[%clk 0:02:49.7]} 7... a5 {[%clk 0:02:49.8]} 8. Na3 {[%clk
0:02:49.4]} 8... Nb6 {[%clk 0:02:49]} 9. Qc2 {[%clk 0:02:48]} 9... Nf6 {[%clk
0:02:24.3]} 10. e4 {[%clk 0:02:48]} 10... O-O {[%clk 0:02:21.1]} 11. Bf4 {[%clk
0:02:45.7]} 11... h6 {[%clk 0:02:14.8]} 12. h4 {[%clk 0:02:41.6]} 12... Be6
{[%clk 0:02:12.7]} 13. Rad1 {[%clk 0:02:35.1]} 13... Qc8 {[%clk 0:02:08]} 14.
Rfe1 {[%clk 0:02:34.1]} 14... Rd8 {[%clk 0:02:06]} 15. Be5 {[%clk 0:02:07.8]}
15... Kh7 {[%clk 0:01:48.4]} 16. Rd2 {[%clk 0:02:03.6]} 16... Bh3 {[%clk
0:01:42.7]} 17. Bh1 {[%clk 0:02:01.7]} 17... Be6 {[%clk 0:01:41.3]} 18. Bg2
{[%clk 0:02:01]} 18... Bh3 {[%clk 0:01:27.2]} 19. Nxc4 {[%clk 0:01:59.7]} 19...
Nxc4 {[%clk 0:01:25]} 20. Qxc4 {[%clk 0:01:59.1]} 20... Bxg2 {[%clk 0:01:24.6]}
21. Kxg2 {[%clk 0:01:59.1]} 21... e6 {[%clk 0:01:22]} 22. Rc2 {[%clk 0:01:39.5]}
22... Qd7 {[%clk 0:01:19.4]} 23. Qb3 {[%clk 0:01:38.3]} 23... Ng4 {[%clk
0:01:11.9]} 24. Bxg7 {[%clk 0:01:37.3]} 24... Kxg7 {[%clk 0:01:12.8]} 25. Rc5
{[%clk 0:01:37.3]} 25... h5 {[%clk 0:01:06.9]} 26. Qc3 {[%clk 0:01:34.1]} 26...
Kg8 {[%clk 0:01:04.9]} 27. Rxa5 {[%clk 0:01:33.8]} 27... Rxa5 {[%clk 0:01:03.1]}
28. Qxa5 {[%clk 0:01:34.7]} 28... Qe7 {[%clk 0:00:55.1]} 29. Qb6 {[%clk
0:01:31.6]} 29... Rd7 {[%clk 0:00:50.5]} 30. a5 {[%clk 0:01:25.3]} 30... e5
{[%clk 0:00:49.9]} 31. Rd1 {[%clk 0:01:10.7]} 31... exd4 {[%clk 0:00:46.6]} 32.
Rxd4 {[%clk 0:01:11.5]} 32... Rxd4 {[%clk 0:00:42.2]} 33. Qxd4 {[%clk
0:01:12.4]} 33... Qe6 {[%clk 0:00:36.7]} 34. Ng5 {[%clk 0:01:05.4]} 34... Qb3
{[%clk 0:00:35.2]} 35. Qd8+ {[%clk 0:00:50.2]} 35... Kg7 {[%clk 0:00:34.3]} 36.
Qe7 {[%clk 0:00:50.8]} 36... Kg8 {[%clk 0:00:14.3]} 37. Qd7 {[%clk 0:00:39.7]}
37... Kg7 {[%clk 0:00:13.4]} 38. Qe8 {[%clk 0:00:24.8]} 38... Qc4 {[%clk
0:00:11.3]} 39. b4 {[%clk 0:00:20.5]} 39... Qa2 {[%clk 0:00:08.8]} 40. Nh3
{[%clk 0:00:18.4]} 40... Qc4 {[%clk 0:00:07.7]} 41. Qe7 {[%clk 0:00:17.8]} 41...
Nf6 {[%clk 0:00:04.4]} 42. Ng5 {[%clk 0:00:17.1]} 42... Ng4 {[%clk 0:00:04.1]}
43. Qc5 {[%clk 0:00:15.6]} 43... Qa2 {[%clk 0:00:02.8]} 44. Qd4+ {[%clk
0:00:14.8]} 44... Kg8 {[%clk 0:00:02.6]} 45. e5 {[%clk 0:00:14.6]} 1-0

[Event "Early-Titled-Tuesday-Blitz-January-30-2024"]
[Site "Chess.com"]
[Date "2024.01.30"]
[Round "2"]
[White "dretch"]
[Black "chess123456s"]
[Result "1-0"]
[WhiteElo "2797"]
[BlackElo "2549"]
[TimeControl "180+1"]
[EndTime "8:19:44 PST"]
[Termination "dretch won by checkmate"]

1. d4 {[%clk 0:03:00.9]} 1... Nf6 {[%clk 0:02:59.5]} 2. c4 {[%clk 0:03:00.7]}
2... e6 {[%clk 0:02:59.4]} 3. Nc3 {[%clk 0:02:59.3]} 3... Bb4 {[%clk 0:02:59.1]}
4. Qc2 {[%clk 0:02:59.4]} 4... d5 {[%clk 0:02:58.7]} 5. cxd5 {[%clk 0:02:59.2]}
5... Qxd5 {[%clk 0:02:59.6]} 6. Nf3 {[%clk 0:02:58.9]} 6... Qf5 {[%clk
0:02:59.6]} 7. Qxf5 {[%clk 0:02:59]} 7... exf5 {[%clk 0:03:00.5]} 8. Bd2 {[%clk
0:02:59.5]} 8... c6 {[%clk 0:02:53.1]} 9. e3 {[%clk 0:02:59.6]} 9... Be6 {[%clk
0:02:52.7]} 10. Bd3 {[%clk 0:02:59.2]} 10... Nbd7 {[%clk 0:02:52.1]} 11. Ng5
{[%clk 0:02:56.9]} 11... Nb6 {[%clk 0:02:49.1]} 12. Nxe6 {[%clk 0:02:54.4]}
12... fxe6 {[%clk 0:02:50]} 13. Ke2 {[%clk 0:02:48.9]} 13... O-O-O {[%clk
0:02:48.9]} 14. Rhc1 {[%clk 0:02:42.3]} 14... Kb8 {[%clk 0:02:46.3]} 15. g3
{[%clk 0:02:28.7]} 15... Rhe8 {[%clk 0:02:42.7]} 16. a3 {[%clk 0:02:21.4]} 16...
Bd6 {[%clk 0:02:41.1]} 17. a4 {[%clk 0:02:17.4]} 17... Nbd5 {[%clk 0:02:37.3]}
18. Nxd5 {[%clk 0:02:14.4]} 18... cxd5 {[%clk 0:02:33.9]} 19. a5 {[%clk
0:02:12]} 19... a6 {[%clk 0:02:30.7]} 20. b4 {[%clk 0:02:01.5]} 20... Ne4 {[%clk
0:02:23.2]} 21. Be1 {[%clk 0:01:57.9]} 21... e5 {[%clk 0:02:12.9]} 22. Kf1
{[%clk 0:01:49.1]} 22... exd4 {[%clk 0:02:08.9]} 23. exd4 {[%clk 0:01:49.2]}
23... f4 {[%clk 0:02:01.9]} 24. b5 {[%clk 0:01:45]} 24... axb5 {[%clk
0:01:58.5]} 25. Bxb5 {[%clk 0:01:43.4]} 25... Rf8 {[%clk 0:01:58.6]} 26. Kg2
{[%clk 0:01:34.3]} 26... f3+ {[%clk 0:01:26.3]} 27. Kf1 {[%clk 0:01:33]} 27...
Rc8 {[%clk 0:00:50.7]} 28. a6 {[%clk 0:01:29.2]} 28... bxa6 {[%clk 0:00:44.7]}
29. Bxa6 {[%clk 0:01:20.5]} 29... Rxc1 {[%clk 0:00:44]} 30. Rxc1 {[%clk
0:01:21.4]} 30... Ka7 {[%clk 0:00:32]} 31. Bc8 {[%clk 0:01:11.7]} 31... Re8
{[%clk 0:00:16.3]} 32. Bg4 {[%clk 0:01:01.9]} 32... Rf8 {[%clk 0:00:12.9]} 33.
Be6 {[%clk 0:00:57.6]} 33... Nf6 {[%clk 0:00:11.9]} 34. Rc3 {[%clk 0:00:57.7]}
34... Bb4 {[%clk 0:00:10.4]} 35. Rc7+ {[%clk 0:00:57.7]} 35... Kb6 {[%clk
0:00:10.9]} 36. Bxb4 {[%clk 0:00:58]} 36... Re8 {[%clk 0:00:08.1]} 37. Re7
{[%clk 0:00:57.2]} 37... Ra8 {[%clk 0:00:07.9]} 38. Bc5+ {[%clk 0:00:56.6]}
38... Kc6 {[%clk 0:00:08.1]} 39. Bf5 {[%clk 0:00:54.4]} 39... Ra1+ {[%clk
0:00:08.2]} 40. Re1 {[%clk 0:00:54.4]} 40... Ra2 {[%clk 0:00:09]} 41. h3 {[%clk
0:00:52.3]} 41... g6 {[%clk 0:00:08.9]} 42. Re6+ {[%clk 0:00:45.6]} 42... Kb5
{[%clk 0:00:09.2]} 43. Bd3+ {[%clk 0:00:45.6]} 43... Ka4 {[%clk 0:00:09.3]} 44.
Ra6+ {[%clk 0:00:38]} 44... Kb3 {[%clk 0:00:09.7]} 45. Rxa2 {[%clk 0:00:38.9]}
45... Kxa2 {[%clk 0:00:10.6]} 46. Ke1 {[%clk 0:00:39.3]} 46... Kb3 {[%clk
0:00:10.8]} 47. Kd2 {[%clk 0:00:39.6]} 47... g5 {[%clk 0:00:10.7]} 48. Ke3
{[%clk 0:00:39.4]} 48... g4 {[%clk 0:00:11.4]} 49. hxg4 {[%clk 0:00:39.5]} 49...
Nxg4+ {[%clk 0:00:12.1]} 50. Kxf3 {[%clk 0:00:40]} 50... Nf6 {[%clk 0:00:13]}
51. Kf4 {[%clk 0:00:39.5]} 51... Kc3 {[%clk 0:00:13.9]} 52. Bf5 {[%clk 0:00:39]}
52... Kc4 {[%clk 0:00:13.6]} 53. f3 {[%clk 0:00:38.9]} 53... Ne8 {[%clk
0:00:14]} 54. Bxh7 {[%clk 0:00:38.7]} 54... Ng7 {[%clk 0:00:14.2]} 55. Bf5
{[%clk 0:00:37.9]} 55... Nh5+ {[%clk 0:00:14.4]} 56. Kg4 {[%clk 0:00:37.9]}
56... Nf6+ {[%clk 0:00:15]} 57. Kg5 {[%clk 0:00:38.3]} 57... Ne8 {[%clk
0:00:15.9]} 58. g4 {[%clk 0:00:38.1]} 58... Nc7 {[%clk 0:00:16.6]} 59. Kf6
{[%clk 0:00:38]} 59... Nb5 {[%clk 0:00:17]} 60. g5 {[%clk 0:00:37.8]} 60... Nc3
{[%clk 0:00:16]} 61. g6 {[%clk 0:00:37.8]} 61... Kb3 {[%clk 0:00:15.4]} 62. g7
{[%clk 0:00:38]} 62... Kb2 {[%clk 0:00:14.9]} 63. g8=Q {[%clk 0:00:37.6]} 63...
Na2 {[%clk 0:00:15.5]} 64. Qb8+ {[%clk 0:00:35.9]} 64... Kc3 {[%clk 0:00:16]}
65. Qb1 {[%clk 0:00:34.8]} 65... Nb4 {[%clk 0:00:10.9]} 66. Qxb4# {[%clk
0:00:34.2]} 1-0

[Event "Early-Titled-Tuesday-Blitz-January-30-2024"]
[Site "Chess.com"]
[Date "2024.01.30"]
[Round "2"]
[White "Msb2"]
[Black "Sanyura"]
[Result "1-0"]
[WhiteElo "3029"]
[BlackElo "2630"]
[TimeControl "180+1"]
[EndTime "8:19:48 PST"]
[Termination "Msb2 won by resignation"]

1. d4 {[%clk 0:03:00.9]} 1... Nf6 {[%clk 0:02:59.4]} 2. c4 {[%clk 0:03:01.1]}
2... c5 {[%clk 0:02:56.2]} 3. d5 {[%clk 0:03:01.2]} 3... b5 {[%clk 0:02:56.2]}
4. cxb5 {[%clk 0:03:02.1]} 4... a6 {[%clk 0:02:56]} 5. bxa6 {[%clk 0:03:03]}
5... e6 {[%clk 0:02:56.3]} 6. dxe6 {[%clk 0:03:01]} 6... fxe6 {[%clk 0:02:56.3]}
7. Nc3 {[%clk 0:03:01.2]} 7... d5 {[%clk 0:02:55.9]} 8. g3 {[%clk 0:03:01.5]}
8... Be7 {[%clk 0:02:55]} 9. Bg2 {[%clk 0:03:01.9]} 9... O-O {[%clk 0:02:55.6]}
10. Nh3 {[%clk 0:03:01.7]} 10... Rxa6 {[%clk 0:02:46.5]} 11. O-O {[%clk
0:02:58.9]} 11... Nc6 {[%clk 0:02:46.5]} 12. b3 {[%clk 0:02:55.3]} 12... Qa5
{[%clk 0:02:30.3]} 13. Bb2 {[%clk 0:02:52.1]} 13... Rd8 {[%clk 0:02:30.3]} 14.
Nf4 {[%clk 0:02:35.5]} 14... Qb6 {[%clk 0:02:21]} 15. Qc1 {[%clk 0:02:24.7]}
15... Bd6 {[%clk 0:01:46.3]} 16. Rd1 {[%clk 0:02:20.8]} 16... Nd4 {[%clk
0:01:34.4]} 17. e3 {[%clk 0:02:14.8]} 17... Nf5 {[%clk 0:01:33.5]} 18. Nd3
{[%clk 0:02:07.3]} 18... c4 {[%clk 0:01:23.9]} 19. bxc4 {[%clk 0:02:05.9]} 19...
dxc4 {[%clk 0:01:24.8]} 20. Nf4 {[%clk 0:02:03.1]} 20... Bxf4 {[%clk 0:01:24.9]}
21. Rxd8+ {[%clk 0:02:00.9]} 21... Qxd8 {[%clk 0:01:24.6]} 22. exf4 {[%clk
0:02:01.8]} 22... Rd6 {[%clk 0:01:18]} 23. Qe1 {[%clk 0:01:39.7]} 23... Nd4
{[%clk 0:00:58.5]} 24. Rd1 {[%clk 0:01:39.5]} 24... Kf7 {[%clk 0:00:41.4]} 25.
a4 {[%clk 0:01:23.6]} 25... Ba6 {[%clk 0:00:40.5]} 26. Ba3 {[%clk 0:01:20.5]}
26... Rd7 {[%clk 0:00:38.4]} 27. Bc5 {[%clk 0:01:16.9]} 27... Nb3 {[%clk
0:00:36]} 28. Rxd7+ {[%clk 0:01:15]} 28... Qxd7 {[%clk 0:00:36.9]} 29. Be3
{[%clk 0:01:12.3]} 29... Bb7 {[%clk 0:00:36]} 30. Qd1 {[%clk 0:01:09.6]} 30...
Qe7 {[%clk 0:00:28]} 31. Bxb7 {[%clk 0:01:04.6]} 31... Qxb7 {[%clk 0:00:28.9]}
32. Nb5 {[%clk 0:01:05.2]} 32... Qd5 {[%clk 0:00:16.2]} 33. Qxd5 {[%clk
0:01:03]} 33... exd5 {[%clk 0:00:17.1]} 34. Nd4 {[%clk 0:01:01.5]} 34... Nd7
{[%clk 0:00:10.7]} 35. Ne2 {[%clk 0:00:41.4]} 35... Ke6 {[%clk 0:00:07.1]} 36.
Kf1 {[%clk 0:00:41.9]} 36... Kd6 {[%clk 0:00:07.4]} 37. Ke1 {[%clk 0:00:42.5]}
37... Kc6 {[%clk 0:00:07.9]} 38. Nd4+ {[%clk 0:00:35.7]} 38... Nxd4 {[%clk
0:00:05.6]} 39. Bxd4 {[%clk 0:00:36.6]} 39... Nc5 {[%clk 0:00:06]} 40. Bxg7
{[%clk 0:00:36.4]} 40... Nxa4 {[%clk 0:00:06.1]} 41. f5 {[%clk 0:00:36.6]} 41...
Kd6 {[%clk 0:00:06]} 42. Bd4 {[%clk 0:00:36.4]} 42... Nc5 {[%clk 0:00:04.3]} 43.
Bxc5+ {[%clk 0:00:18.1]} 43... Kxc5 {[%clk 0:00:05.2]} 44. f6 {[%clk 0:00:18.8]}
44... Kd6 {[%clk 0:00:05.7]} 45. g4 {[%clk 0:00:19.5]} 45... Ke6 {[%clk
0:00:06]} 46. g5 {[%clk 0:00:20.1]} 46... d4 {[%clk 0:00:03.5]} 47. Kd2 {[%clk
0:00:20.3]} 47... c3+ {[%clk 0:00:03.6]} 48. Kd3 {[%clk 0:00:20.7]} 48... Kf7
{[%clk 0:00:03.6]} 49. f4 {[%clk 0:00:21]} 49... h6 {[%clk 0:00:02.8]} 50. h4
{[%clk 0:00:15.5]} 50... h5 {[%clk 0:00:02]} 51. f5 {[%clk 0:00:15.6]} 51... Ke8
{[%clk 0:00:02.4]} 52. g6 {[%clk 0:00:15.9]} 52... Kf8 {[%clk 0:00:02.8]} 53. f7
{[%clk 0:00:13.6]} 53... Kg7 {[%clk 0:00:03.2]} 54. f6+ {[%clk 0:00:11.5]} 54...
Kf8 {[%clk 0:00:03.7]} 55. Kc2 {[%clk 0:00:10.9]} 55... d3+ {[%clk 0:00:03.2]}
56. Kxd3 {[%clk 0:00:11.6]} 56... c2 {[%clk 0:00:04.1]} 57. g7+ {[%clk
0:00:12.3]} 57... Kxf7 {[%clk 0:00:04.6]} 58. Kxc2 {[%clk 0:00:13.1]} 1-0

[Event "Early-Titled-Tuesday-Blitz-January-30-2024"]
[Site "Chess.com"]
[Date "2024.01.30"]
[Round "2"]
[White "kleinebeer98"]
[Black "FREDERICKtheMATE"]
[Result "1-0"]
[WhiteElo "2857"]
[BlackElo "2570"]
[TimeControl "180+1"]
[EndTime "8:19:48 PST"]
[Termination "kleinebeer98 won by resignation"]

1. e4 {[%clk 0:03:00.9]} 1... c5 {[%clk 0:02:59.8]} 2. Nf3 {[%clk 0:02:56.7]}
2... Nc6 {[%clk 0:03:00.1]} 3. Nc3 {[%clk 0:02:55]} 3... g6 {[%clk 0:02:57.2]}
4. d4 {[%clk 0:02:55.1]} 4... cxd4 {[%clk 0:02:56.7]} 5. Nxd4 {[%clk 0:02:56]}
5... Bg7 {[%clk 0:02:56.3]} 6. Nf3 {[%clk 0:02:56.9]} 6... d6 {[%clk 0:02:55.6]}
7. Bc4 {[%clk 0:02:57]} 7... Nf6 {[%clk 0:02:55.8]} 8. h3 {[%clk 0:02:57.3]}
8... O-O {[%clk 0:02:56.1]} 9. O-O {[%clk 0:02:58]} 9... Bd7 {[%clk 0:02:55.5]}
10. Bg5 {[%clk 0:02:58.3]} 10... Rc8 {[%clk 0:02:55]} 11. Qe2 {[%clk 0:02:58.9]}
11... a6 {[%clk 0:02:54]} 12. Rad1 {[%clk 0:02:58.7]} 12... b5 {[%clk
0:02:54.2]} 13. Bb3 {[%clk 0:02:59.3]} 13... h6 {[%clk 0:02:52.2]} 14. Bh4
{[%clk 0:02:58.5]} 14... Na5 {[%clk 0:02:49.2]} 15. e5 {[%clk 0:02:58.7]} 15...
dxe5 {[%clk 0:02:48.3]} 16. Nxe5 {[%clk 0:02:59.6]} 16... Rc7 {[%clk 0:02:43.6]}
17. Nxg6 {[%clk 0:02:41.8]} 17... Re8 {[%clk 0:02:38.3]} 18. Ne5 {[%clk
0:02:38.6]} 18... Nxb3 {[%clk 0:02:36.8]} 19. cxb3 {[%clk 0:02:39.5]} 19... Qc8
{[%clk 0:02:30.7]} 20. Rfe1 {[%clk 0:02:35.4]} 20... Be6 {[%clk 0:02:28.1]} 21.
Nd3 {[%clk 0:02:25.2]} 21... Bf5 {[%clk 0:02:19.8]} 22. Nf4 {[%clk 0:02:15.2]}
22... Rb7 {[%clk 0:02:01.1]} 23. Ncd5 {[%clk 0:02:09.9]} 23... Nxd5 {[%clk
0:02:00.6]} 24. Nxd5 {[%clk 0:02:10.8]} 24... e6 {[%clk 0:02:00.7]} 25. Nf6+
{[%clk 0:02:10.9]} 25... Bxf6 {[%clk 0:02:00.4]} 26. Bxf6 {[%clk 0:02:11.8]}
26... Qc2 {[%clk 0:01:57.5]} 27. Qe3 {[%clk 0:02:12.1]} 27... Kh7 {[%clk
0:01:56.2]} 28. Rd2 {[%clk 0:02:01.4]} 28... Qc6 {[%clk 0:01:52.3]} 29. g4
{[%clk 0:01:19.6]} 29... Rg8 {[%clk 0:01:49.4]} 30. Kh2 {[%clk 0:01:17.9]} 30...
Bg6 {[%clk 0:01:47.1]} 31. Qf4 {[%clk 0:01:12.3]} 31... Rd7 {[%clk 0:01:44.1]}
32. Rxd7 {[%clk 0:01:09.1]} 32... Qxd7 {[%clk 0:01:45]} 33. Rc1 {[%clk
0:01:01.8]} 33... Rc8 {[%clk 0:01:41.4]} 34. Rxc8 {[%clk 0:00:59.7]} 34... Qxc8
{[%clk 0:01:41.8]} 35. h4 {[%clk 0:00:57.2]} 35... h5 {[%clk 0:01:29.5]} 36. Be5
{[%clk 0:00:51]} 36... Qg8 {[%clk 0:01:24.4]} 37. f3 {[%clk 0:00:43.6]} 37...
Bd3 {[%clk 0:01:01.9]} 38. Qf6 {[%clk 0:00:37.1]} 38... Bg6 {[%clk 0:01:00.7]}
39. a4 {[%clk 0:00:32.9]} 39... Bd3 {[%clk 0:00:46]} 40. Kg3 {[%clk 0:00:16.7]}
40... Bc2 {[%clk 0:00:37.1]} 41. g5 {[%clk 0:00:11.9]} 41... Bg6 {[%clk
0:00:36.4]} 42. Kf2 {[%clk 0:00:10.6]} 42... Qf8 {[%clk 0:00:28.8]} 43. Bd4
{[%clk 0:00:10.4]} 43... Bc2 {[%clk 0:00:23.6]} 44. a5 {[%clk 0:00:07.8]} 44...
Bg6 {[%clk 0:00:22.9]} 45. Ke3 {[%clk 0:00:05.6]} 45... Bc2 {[%clk 0:00:20.5]}
46. b4 {[%clk 0:00:06.2]} 46... Bg6 {[%clk 0:00:20.2]} 47. Kf2 {[%clk 0:00:05]}
47... Bf5 {[%clk 0:00:19.9]} 48. Bc5 {[%clk 0:00:05.7]} 48... Qe8 {[%clk
0:00:16.2]} 49. Qh6+ {[%clk 0:00:05.3]} 49... Kg8 {[%clk 0:00:15.5]} 50. Bd4
{[%clk 0:00:06.2]} 50... e5 {[%clk 0:00:13.8]} 51. Bc3 {[%clk 0:00:02.9]} 51...
Bg6 {[%clk 0:00:14.3]} 52. f4 {[%clk 0:00:02.5]} 52... Qe6 {[%clk 0:00:12.7]}
53. Bxe5 {[%clk 0:00:02.5]} 53... Qxe5 {[%clk 0:00:03.9]} 54. fxe5 {[%clk
0:00:03.4]} 1-0